[Event "Live Chess"]
[Site "Chess.com"]
[Date "2011.01.29"]
[Round "-"]
[White "hipposcottimus"]
[Black "manuelangel"]
[Result "1-0"]
[CurrentPosition "8/p4k2/3P4/7p/6p1/3P1p2/4pK1P/4R3 b - -"]
[Timezone "UTC"]
[ECO "B20"]
[ECOUrl "https://www.chess.com/openings/Sicilian-Defense"]
[UTCDate "2011.01.29"]
[UTCTime "22:11:45"]
[WhiteElo "1647"]
[BlackElo "1494"]
[TimeControl "60"]
[Termination "hipposcottimus won on time"]
[StartTime "22:11:45"]
[EndDate "2011.01.29"]
[EndTime "22:13:53"]
[Link "https://www.chess.com/game/live/92748725"]

1. e4 {[%clk 0:01:00]} 1... c5 {[%clk 0:01:00]} 2. Bb5 {[%clk 0:00:58.1]} 2... Nc6 {[%clk 0:00:59.8]} 3. Bxc6 {[%clk 0:00:57.6]} 3... bxc6 {[%clk 0:00:58.9]} 4. c4 {[%clk 0:00:57.4]} 4... e6 {[%clk 0:00:58.5]} 5. d3 {[%clk 0:00:57.1]} 5... Bb7 {[%clk 0:00:57]} 6. Nc3 {[%clk 0:00:56.8]} 6... Qb6 {[%clk 0:00:55.9]} 7. f4 {[%clk 0:00:56.3]} 7... Nf6 {[%clk 0:00:54.3]} 8. Nf3 {[%clk 0:00:56]} 8... Be7 {[%clk 0:00:53.5]} 9. O-O {[%clk 0:00:55.8]} 9... O-O {[%clk 0:00:50.9]} 10. Qc2 {[%clk 0:00:55.5]} 10... d5 {[%clk 0:00:49.6]} 11. Be3 {[%clk 0:00:55.2]} 11... d4 {[%clk 0:00:48]} 12. Na4 {[%clk 0:00:52.9]} 12... Qc7 {[%clk 0:00:42]} 13. Bd2 {[%clk 0:00:51.9]} 13... e5 {[%clk 0:00:39.3]} 14. b4 {[%clk 0:00:51.1]} 14... exf4 {[%clk 0:00:37.7]} 15. Ng5 {[%clk 0:00:46.3]} 15... cxb4 {[%clk 0:00:35.9]} 16. Bxf4 {[%clk 0:00:45.8]} 16... Qc8 {[%clk 0:00:33.6]} 17. Nb2 {[%clk 0:00:44.6]} 17... c5 {[%clk 0:00:32.7]} 18. a3 {[%clk 0:00:40.9]} 18... Nh5 {[%clk 0:00:29.8]} 19. Nh3 {[%clk 0:00:37.1]} 19... Nxf4 {[%clk 0:00:28.5]} 20. Nxf4 {[%clk 0:00:36.4]} 20... Bg5 {[%clk 0:00:27.9]} 21. axb4 {[%clk 0:00:34.3]} 21... Qc7 {[%clk 0:00:24.5]} 22. Nd5 {[%clk 0:00:31.9]} 22... Bxd5 {[%clk 0:00:23.3]} 23. cxd5 {[%clk 0:00:30.8]} 23... Rac8 {[%clk 0:00:21.2]} 24. bxc5 {[%clk 0:00:29.6]} 24... Qxc5 {[%clk 0:00:19.8]} 25. Nc4 {[%clk 0:00:29.4]} 25... Be3+ {[%clk 0:00:16.8]} 26. Kh1 {[%clk 0:00:27.3]} 26... h6 {[%clk 0:00:16.3]} 27. Rae1 {[%clk 0:00:25.5]} 27... g6 {[%clk 0:00:15.7]} 28. Rf3 {[%clk 0:00:24.5]} 28... f5 {[%clk 0:00:14.4]} 29. Rc1 {[%clk 0:00:23.6]} 29... fxe4 {[%clk 0:00:13.3]} 30. Nxe3 {[%clk 0:00:18.9]} 30... Rxf3 {[%clk 0:00:11.7]} 31. Qxc5 {[%clk 0:00:16.8]} 31... Rxc5 {[%clk 0:00:09.6]} 32. Rxc5 {[%clk 0:00:15.9]} 32... dxe3 {[%clk 0:00:09]} 33. Rc8+ {[%clk 0:00:15.5]} 33... Kf7 {[%clk 0:00:07.3]} 34. gxf3 {[%clk 0:00:15.1]} 34... e2 {[%clk 0:00:06.1]} 35. Rc1 {[%clk 0:00:14.8]} 35... exf3 {[%clk 0:00:03.2]} 36. Re1 {[%clk 0:00:14.1]} 36... g5 {[%clk 0:00:02.1]} 37. Kg1 {[%clk 0:00:13.5]} 37... g4 {[%clk 0:00:01.4]} 38. Kf2 {[%clk 0:00:12.8]} 38... h5 {[%clk 0:00:01]} 39. d6 {[%clk 0:00:11.1]} 1-0

[Event "Live Chess"]
[Site "Chess.com"]
[Date "2011.01.29"]
[Round "-"]
[White "manuelangel"]
[Black "hipposcottimus"]
[Result "0-1"]
[CurrentPosition "8/p1p1r1k1/5r2/8/4B1p1/PP1P2P1/2P2RKP/4n3 w - -"]
[Timezone "UTC"]
[ECO "C47"]
[ECOUrl "https://www.chess.com/openings/Four-Knights-Game-Italian-Variation"]
[UTCDate "2011.01.29"]
[UTCTime "22:08:52"]
[WhiteElo "1499"]
[BlackElo "1642"]
[TimeControl "60"]
[Termination "hipposcottimus won on time"]
[StartTime "22:08:52"]
[EndDate "2011.01.29"]
[EndTime "22:11:09"]
[Link "https://www.chess.com/game/live/92747929"]

1. e4 {[%clk 0:01:00]} 1... e5 {[%clk 0:01:00]} 2. Nf3 {[%clk 0:00:59.6]} 2... Nc6 {[%clk 0:00:58.4]} 3. Bc4 {[%clk 0:00:59.3]} 3... Nf6 {[%clk 0:00:57.7]} 4. Nc3 {[%clk 0:00:58.8]} 4... Bb4 {[%clk 0:00:56]} 5. d3 {[%clk 0:00:57.9]} 5... d5 {[%clk 0:00:54.5]} 6. Bb3 {[%clk 0:00:55.7]} 6... d4 {[%clk 0:00:53.4]} 7. Bd2 {[%clk 0:00:53.1]} 7... dxc3 {[%clk 0:00:52.5]} 8. Bxc3 {[%clk 0:00:51.7]} 8... Bd6 {[%clk 0:00:52.3]} 9. Qd2 {[%clk 0:00:48.5]} 9... O-O {[%clk 0:00:51.9]} 10. Qg5 {[%clk 0:00:47.3]} 10... h6 {[%clk 0:00:45.9]} 11. Qg3 {[%clk 0:00:45.6]} 11... Nh5 {[%clk 0:00:43.4]} 12. Qh4 {[%clk 0:00:43.5]} 12... Qxh4 {[%clk 0:00:40.9]} 13. Nxh4 {[%clk 0:00:42.8]} 13... Nf4 {[%clk 0:00:40.5]} 14. O-O {[%clk 0:00:39.8]} 14... Be7 {[%clk 0:00:34.6]} 15. Nf3 {[%clk 0:00:38.1]} 15... Bd6 {[%clk 0:00:33.2]} 16. Nxe5 {[%clk 0:00:36.6]} 16... Bxe5 {[%clk 0:00:31.7]} 17. Bxe5 {[%clk 0:00:36.2]} 17... Nxe5 {[%clk 0:00:30.4]} 18. Rfe1 {[%clk 0:00:35.8]} 18... Neg6 {[%clk 0:00:22.3]} 19. g3 {[%clk 0:00:35.2]} 19... Nh3+ {[%clk 0:00:20.9]} 20. Kg2 {[%clk 0:00:34.4]} 20... Ng5 {[%clk 0:00:20.6]} 21. a3 {[%clk 0:00:31.6]} 21... Bh3+ {[%clk 0:00:20.2]} 22. Kg1 {[%clk 0:00:29.5]} 22... Nf3+ {[%clk 0:00:19.6]} 23. Kh1 {[%clk 0:00:28]} 23... Nxe1 {[%clk 0:00:19.3]} 24. Rxe1 {[%clk 0:00:25.3]} 24... Ne5 {[%clk 0:00:19.1]} 25. f4 {[%clk 0:00:22.6]} 25... Nf3 {[%clk 0:00:18.5]} 26. Re2 {[%clk 0:00:20.8]} 26... g5 {[%clk 0:00:15.3]} 27. fxg5 {[%clk 0:00:19]} 27... hxg5 {[%clk 0:00:14.2]} 28. Bd5 {[%clk 0:00:18.2]} 28... g4 {[%clk 0:00:13.4]} 29. Bxb7 {[%clk 0:00:16.1]} 29... Rae8 {[%clk 0:00:12]} 30. Bd5 {[%clk 0:00:15.1]} 30... Kg7 {[%clk 0:00:08.4]} 31. Rf2 {[%clk 0:00:14.1]} 31... f6 {[%clk 0:00:06.8]} 32. Bc6 {[%clk 0:00:12.7]} 32... Re7 {[%clk 0:00:05.4]} 33. Bb7 {[%clk 0:00:11.3]} 33... f5 {[%clk 0:00:05]} 34. exf5 {[%clk 0:00:09.6]} 34... Rxf5 {[%clk 0:00:04.7]} 35. Be4 {[%clk 0:00:09]} 35... Rf6 {[%clk 0:00:02.8]} 36. Bd5 {[%clk 0:00:06]} 36... Rd7 {[%clk 0:00:02.3]} 37. Be4 {[%clk 0:00:05.2]} 37... Re7 {[%clk 0:00:01.9]} 38. b3 {[%clk 0:00:03.9]} 38... Bg2+ {[%clk 0:00:01.2]} 39. Kxg2 {[%clk 0:00:01.8]} 39... Ne1+ {[%clk 0:00:00.9]} 0-1

[Event "Live Chess"]
[Site "Chess.com"]
[Date "2011.01.29"]
[Round "-"]
[White "hipposcottimus"]
[Black "gwhiit"]
[Result "0-1"]
[CurrentPosition "1r1r4/1p2kppp/1nb5/3Np3/4PR2/1P6/P2nB1PP/2R3K1 b - -"]
[Timezone "UTC"]
[ECO "B12"]
[ECOUrl "https://www.chess.com/openings/Caro-Kann-Defense-Advance-Variation"]
[UTCDate "2011.01.29"]
[UTCTime "22:05:22"]
[WhiteElo "1420"]
[BlackElo "1420"]
[TimeControl "120+10"]
[Termination "gwhiit won by resignation"]
[StartTime "22:05:22"]
[EndDate "2011.01.29"]
[EndTime "22:08:14"]
[Link "https://www.chess.com/game/live/92746968"]

1. e4 {[%clk 0:02:00]} 1... c6 {[%clk 0:02:00]} 2. d4 {[%clk 0:02:08.4]} 2... d5 {[%clk 0:02:08.7]} 3. e5 {[%clk 0:02:17.8]} 3... e6 {[%clk 0:02:17.6]} 4. c4 {[%clk 0:02:27.2]} 4... c5 {[%clk 0:02:26.9]} 5. cxd5 {[%clk 0:02:35.6]} 5... Qxd5 {[%clk 0:02:34.8]} 6. Nf3 {[%clk 0:02:45]} 6... cxd4 {[%clk 0:02:42.8]} 7. Nxd4 {[%clk 0:02:51.8]} 7... Bc5 {[%clk 0:02:50.8]} 8. Nc3 {[%clk 0:03:00.3]} 8... Qxd4 {[%clk 0:02:58.9]} 9. Be3 {[%clk 0:03:07.7]} 9... Qxd1+ {[%clk 0:03:06]} 10. Rxd1 {[%clk 0:03:17.5]} 10... Bxe3 {[%clk 0:03:14.5]} 11. fxe3 {[%clk 0:03:27.2]} 11... Nc6 {[%clk 0:03:22.4]} 12. Nb5 {[%clk 0:03:36.5]} 12... Rb8 {[%clk 0:03:23.1]} 13. Nc7+ {[%clk 0:03:44.9]} 13... Ke7 {[%clk 0:03:30.7]} 14. Nb5 {[%clk 0:03:46.4]} 14... Nxe5 {[%clk 0:03:33.8]} 15. Nxa7 {[%clk 0:03:55.4]} 15... Nf6 {[%clk 0:03:39.5]} 16. Nb5 {[%clk 0:04:02.8]} 16... Nd5 {[%clk 0:03:43.1]} 17. e4 {[%clk 0:04:10.4]} 17... Nb6 {[%clk 0:03:49.9]} 18. Be2 {[%clk 0:04:15.4]} 18... Rd8 {[%clk 0:03:58.1]} 19. Rc1 {[%clk 0:04:24.2]} 19... Bd7 {[%clk 0:04:04.7]} 20. Nc3 {[%clk 0:04:27.2]} 20... Bc6 {[%clk 0:04:06.8]} 21. O-O {[%clk 0:04:36.7]} 21... Nec4 {[%clk 0:04:11.5]} 22. b3 {[%clk 0:04:40.7]} 22... Nd2 {[%clk 0:04:16.7]} 23. Rf4 {[%clk 0:04:42.7]} 23... e5 {[%clk 0:04:21.7]} 24. Nd5+ {[%clk 0:04:48.6]} 0-1

[Event "Live Chess"]
[Site "Chess.com"]
[Date "2011.01.29"]
[Round "-"]
[White "hipposcottimus"]
[Black "elagnavi"]
[Result "0-1"]
[CurrentPosition "rn1q1rk1/p1p1npbp/1p2p1p1/4P3/5P2/2NBBbN1/PPP4P/R3K1R1 w Q -"]
[Timezone "UTC"]
[ECO "B06"]
[ECOUrl "https://www.chess.com/openings/Modern-Defense-with-1-e4"]
[UTCDate "2011.01.29"]
[UTCTime "21:32:15"]
[WhiteElo "1637"]
[BlackElo "1722"]
[TimeControl "60"]
[Termination "elagnavi won on time"]
[StartTime "21:32:15"]
[EndDate "2011.01.29"]
[EndTime "21:32:44"]
[Link "https://www.chess.com/game/live/92737105"]

1. e4 {[%clk 0:01:00]} 1... g6 {[%clk 0:01:00]} 2. Ne2 {[%clk 0:00:59.3]} 2... Bg7 {[%clk 0:00:59.7]} 3. d4 {[%clk 0:00:58.6]} 3... e6 {[%clk 0:00:59.4]} 4. f4 {[%clk 0:00:57.6]} 4... b6 {[%clk 0:00:59]} 5. e5 {[%clk 0:00:56.9]} 5... Bb7 {[%clk 0:00:58.6]} 6. Ng3 {[%clk 0:00:56.4]} 6... d6 {[%clk 0:00:57.9]} 7. Bd3 {[%clk 0:00:52]} 7... Bxg2 {[%clk 0:00:55.5]} 8. Rg1 {[%clk 0:00:51]} 8... Bb7 {[%clk 0:00:53.7]} 9. Nc3 {[%clk 0:00:50.7]} 9... dxe5 {[%clk 0:00:52.7]} 10. dxe5 {[%clk 0:00:50.4]} 10... Ne7 {[%clk 0:00:50.7]} 11. Be3 {[%clk 0:00:50.1]} 11... O-O {[%clk 0:00:49.6]} 12. Qf3 {[%clk 0:00:49.7]} 12... Bxf3 {[%clk 0:00:48]} 0-1

[Event "Live Chess"]
[Site "Chess.com"]
[Date "2011.01.29"]
[Round "-"]
[White "vahidrastak"]
[Black "hipposcottimus"]
[Result "1-0"]
[CurrentPosition "2Q2r1k/p5pp/8/4p3/3pP1r1/1P1P2P1/P4P1P/5RK1 w - -"]
[Timezone "UTC"]
[ECO "A10"]
[ECOUrl "https://www.chess.com/openings/English-Opening-Jaenisch-Gambit"]
[UTCDate "2011.01.29"]
[UTCTime "21:25:56"]
[WhiteElo "1624"]
[BlackElo "1643"]
[TimeControl "60"]
[Termination "vahidrastak won by resignation"]
[StartTime "21:25:56"]
[EndDate "2011.01.29"]
[EndTime "21:27:24"]
[Link "https://www.chess.com/game/live/92735258"]

1. c4 {[%clk 0:01:00]} 1... b5 {[%clk 0:01:00]} 2. cxb5 {[%clk 0:00:55.6]} 2... c6 {[%clk 0:00:58.9]} 3. bxc6 {[%clk 0:00:54.3]} 3... Nxc6 {[%clk 0:00:57.6]} 4. Nf3 {[%clk 0:00:54.2]} 4... e5 {[%clk 0:00:56.4]} 5. Nc3 {[%clk 0:00:54.1]} 5... d5 {[%clk 0:00:55.4]} 6. e4 {[%clk 0:00:54]} 6... d4 {[%clk 0:00:54.2]} 7. Nd5 {[%clk 0:00:51.7]} 7... Nf6 {[%clk 0:00:53.9]} 8. Bc4 {[%clk 0:00:50.2]} 8... Be7 {[%clk 0:00:51.7]} 9. O-O {[%clk 0:00:47.5]} 9... Be6 {[%clk 0:00:50.3]} 10. Nxf6+ {[%clk 0:00:44.6]} 10... Bxf6 {[%clk 0:00:48.5]} 11. Bxe6 {[%clk 0:00:44.5]} 11... fxe6 {[%clk 0:00:48.3]} 12. Qa4 {[%clk 0:00:44.4]} 12... Rc8 {[%clk 0:00:46.8]} 13. d3 {[%clk 0:00:43.1]} 13... O-O {[%clk 0:00:46]} 14. Bg5 {[%clk 0:00:41.7]} 14... Bxg5 {[%clk 0:00:45]} 15. Nxg5 {[%clk 0:00:40.6]} 15... Qxg5 {[%clk 0:00:44.7]} 16. Rac1 {[%clk 0:00:39.3]} 16... Qf4 {[%clk 0:00:43.9]} 17. Rxc6 {[%clk 0:00:34.9]} 17... Rb8 {[%clk 0:00:43.6]} 18. b3 {[%clk 0:00:33.2]} 18... Rbe8 {[%clk 0:00:42]} 19. Qc4 {[%clk 0:00:31.2]} 19... Rf6 {[%clk 0:00:40.7]} 20. g3 {[%clk 0:00:30.1]} 20... Rg6 {[%clk 0:00:38.2]} 21. Kh1 {[%clk 0:00:26]} 21... Qf3+ {[%clk 0:00:36.7]} 22. Kg1 {[%clk 0:00:25.5]} 22... Rf8 {[%clk 0:00:34.5]} 23. Rxe6 {[%clk 0:00:22.9]} 23... Rg4 {[%clk 0:00:32]} 24. Rf6+ {[%clk 0:00:19.9]} 24... Kh8 {[%clk 0:00:28.6]} 25. Rxf3 {[%clk 0:00:19.8]} 25... Rxf3 {[%clk 0:00:27.8]} 26. Qc8+ {[%clk 0:00:17.6]} 26... Rf8 {[%clk 0:00:27.5]} 1-0

[Event "Live Chess"]
[Site "Chess.com"]
[Date "2011.01.29"]
[Round "-"]
[White "hipposcottimus"]
[Black "vahidrastak"]
[Result "1-0"]
[CurrentPosition "8/pp5p/1kp2R2/3pP3/4b3/2R1K3/PP4rP/8 b - -"]
[Timezone "UTC"]
[ECO "C42"]
[ECOUrl "https://www.chess.com/openings/Petrovs-Defense-Urusov-Lichtenhein-Defense"]
[UTCDate "2011.01.29"]
[UTCTime "21:21:49"]
[WhiteElo "1652"]
[BlackElo "1615"]
[TimeControl "60"]
[Termination "hipposcottimus won on time"]
[StartTime "21:21:49"]
[EndDate "2011.01.29"]
[EndTime "21:23:58"]
[Link "https://www.chess.com/game/live/92734372"]

1. e4 {[%clk 0:01:00]} 1... e5 {[%clk 0:01:00]} 2. Nf3 {[%clk 0:00:58]} 2... Nf6 {[%clk 0:00:59.9]} 3. Bc4 {[%clk 0:00:56.9]} 3... Nxe4 {[%clk 0:00:56.7]} 4. Nxe5 {[%clk 0:00:55.9]} 4... Qe7 {[%clk 0:00:55.7]} 5. Bxf7+ {[%clk 0:00:53.9]} 5... Kd8 {[%clk 0:00:52.7]} 6. f4 {[%clk 0:00:46.7]} 6... d6 {[%clk 0:00:51.5]} 7. Ng4 {[%clk 0:00:41]} 7... Qxf7 {[%clk 0:00:49.9]} 8. O-O {[%clk 0:00:40.1]} 8... Bf5 {[%clk 0:00:48.4]} 9. d3 {[%clk 0:00:39.5]} 9... Nc5 {[%clk 0:00:47.3]} 10. d4 {[%clk 0:00:37.6]} 10... Ne6 {[%clk 0:00:45.5]} 11. Ne3 {[%clk 0:00:35.1]} 11... Nc6 {[%clk 0:00:41.5]} 12. Nc3 {[%clk 0:00:32.9]} 12... Ncxd4 {[%clk 0:00:39.5]} 13. Ned5 {[%clk 0:00:27.5]} 13... c6 {[%clk 0:00:32.3]} 14. Nb4 {[%clk 0:00:24.2]} 14... d5 {[%clk 0:00:30]} 15. Nd3 {[%clk 0:00:23.9]} 15... Bd6 {[%clk 0:00:27.3]} 16. Ne2 {[%clk 0:00:23.6]} 16... Bg6 {[%clk 0:00:24.6]} 17. Nxd4 {[%clk 0:00:22.6]} 17... Nxd4 {[%clk 0:00:22.9]} 18. Ne5 {[%clk 0:00:22.3]} 18... Bxe5 {[%clk 0:00:20]} 19. fxe5 {[%clk 0:00:22]} 19... Qe6 {[%clk 0:00:17.1]} 20. Qxd4 {[%clk 0:00:21.1]} 20... Bxc2 {[%clk 0:00:15.8]} 21. Qh4+ {[%clk 0:00:20.4]} 21... Qe7 {[%clk 0:00:13.6]} 22. Bg5 {[%clk 0:00:18.9]} 22... Qxg5 {[%clk 0:00:11.1]} 23. Qxg5+ {[%clk 0:00:18.5]} 23... Kc7 {[%clk 0:00:10.6]} 24. Qxg7+ {[%clk 0:00:17.9]} 24... Kb6 {[%clk 0:00:09.5]} 25. Rac1 {[%clk 0:00:15.5]} 25... Rag8 {[%clk 0:00:08.1]} 26. Qf6 {[%clk 0:00:13.8]} 26... Be4 {[%clk 0:00:06.9]} 27. Rc3 {[%clk 0:00:12.6]} 27... Rxg2+ {[%clk 0:00:05.2]} 28. Kh1 {[%clk 0:00:12.3]} 28... Rf2+ {[%clk 0:00:04.3]} 29. Kg1 {[%clk 0:00:10.4]} 29... Rxf6 {[%clk 0:00:03.7]} 30. Rxf6 {[%clk 0:00:07.8]} 30... Rg8+ {[%clk 0:00:03.1]} 31. Kf2 {[%clk 0:00:07.5]} 31... Rg2+ {[%clk 0:00:01.1]} 32. Ke3 {[%clk 0:00:06.5]} 1-0

[Event "Live Chess"]
[Site "Chess.com"]
[Date "2011.01.29"]
[Round "-"]
[White "hipposcottimus"]
[Black "necdet_aydin"]
[Result "1-0"]
[CurrentPosition "7r/p1pnkp1q/4pp2/8/8/5PNP/6P1/2B2R1K b - -"]
[Timezone "UTC"]
[ECO "B01"]
[ECOUrl "https://www.chess.com/openings/Scandinavian-Defense-Mieses-Kotrc-Main-Line-4.d4-Nf6-5.Bd2-Bg4"]
[UTCDate "2011.01.29"]
[UTCTime "21:18:42"]
[WhiteElo "1644"]
[BlackElo "1603"]
[TimeControl "60"]
[Termination "hipposcottimus won on time"]
[StartTime "21:18:42"]
[EndDate "2011.01.29"]
[EndTime "21:20:53"]
[Link "https://www.chess.com/game/live/92733573"]

1. e4 {[%clk 0:01:00]} 1... d5 {[%clk 0:01:00]} 2. exd5 {[%clk 0:00:58.7]} 2... Qxd5 {[%clk 0:00:59.7]} 3. Nc3 {[%clk 0:00:57.8]} 3... Qa5 {[%clk 0:00:59.1]} 4. d4 {[%clk 0:00:56.4]} 4... Nf6 {[%clk 0:00:58.6]} 5. Bd2 {[%clk 0:00:56.1]} 5... Bg4 {[%clk 0:00:57.1]} 6. f3 {[%clk 0:00:54.4]} 6... Bh5 {[%clk 0:00:55.8]} 7. Bd3 {[%clk 0:00:53.4]} 7... e6 {[%clk 0:00:54.2]} 8. Ne4 {[%clk 0:00:48.1]} 8... Qb6 {[%clk 0:00:50.4]} 9. Nxf6+ {[%clk 0:00:47.2]} 9... gxf6 {[%clk 0:00:49.8]} 10. c3 {[%clk 0:00:46.2]} 10... Bd6 {[%clk 0:00:48.2]} 11. Ne2 {[%clk 0:00:45.8]} 11... Nd7 {[%clk 0:00:45.6]} 12. O-O {[%clk 0:00:45.4]} 12... Qxb2 {[%clk 0:00:44.7]} 13. Rb1 {[%clk 0:00:43.9]} 13... Qa3 {[%clk 0:00:43.5]} 14. Rxb7 {[%clk 0:00:43.5]} 14... Ke7 {[%clk 0:00:40.7]} 15. Bc1 {[%clk 0:00:39.4]} 15... Qxa2 {[%clk 0:00:38.8]} 16. Bb5 {[%clk 0:00:36.6]} 16... Qd5 {[%clk 0:00:36.8]} 17. Ba6 {[%clk 0:00:30]} 17... Rhg8 {[%clk 0:00:34.4]} 18. Rb5 {[%clk 0:00:29.1]} 18... Qa2 {[%clk 0:00:26.6]} 19. Rxh5 {[%clk 0:00:26.2]} 19... Qxa6 {[%clk 0:00:24.8]} 20. Rxh7 {[%clk 0:00:25]} 20... Rh8 {[%clk 0:00:22]} 21. Qc2 {[%clk 0:00:21.7]} 21... Qa5 {[%clk 0:00:18.2]} 22. Ng3 {[%clk 0:00:18.5]} 22... Qd5 {[%clk 0:00:13.7]} 23. c4 {[%clk 0:00:17.3]} 23... Qxd4+ {[%clk 0:00:11.3]} 24. Kh1 {[%clk 0:00:15.5]} 24... Rxh7 {[%clk 0:00:10]} 25. Qxh7 {[%clk 0:00:13.7]} 25... Qxc4 {[%clk 0:00:08.4]} 26. Nh5 {[%clk 0:00:12.2]} 26... Qh4 {[%clk 0:00:04.7]} 27. Ng3 {[%clk 0:00:08.9]} 27... Qxh7 {[%clk 0:00:02.8]} 28. Ne4 {[%clk 0:00:06.5]} 28... Bg3 {[%clk 0:00:02.4]} 29. Nxg3 {[%clk 0:00:05.4]} 29... Rh8 {[%clk 0:00:00.6]} 30. h3 {[%clk 0:00:03.8]} 1-0

[Event "Live Chess"]
[Site "Chess.com"]
[Date "2011.01.29"]
[Round "-"]
[White "espanarules"]
[Black "hipposcottimus"]
[Result "0-1"]
[CurrentPosition "Bnb2rk1/p1b3pp/4p3/8/2pp3N/8/PP1Q1PPq/R2N1RK1 w - -"]
[Timezone "UTC"]
[ECO "A10"]
[ECOUrl "https://www.chess.com/openings/English-Opening-Jaenisch-Gambit"]
[UTCDate "2011.01.29"]
[UTCTime "21:16:27"]
[WhiteElo "1631"]
[BlackElo "1637"]
[TimeControl "60"]
[Termination "hipposcottimus won by checkmate"]
[StartTime "21:16:27"]
[EndDate "2011.01.29"]
[EndTime "21:17:56"]
[Link "https://www.chess.com/game/live/92732997"]

1. c4 {[%clk 0:01:00]} 1... b5 {[%clk 0:01:00]} 2. Nc3 {[%clk 0:00:59.6]} 2... bxc4 {[%clk 0:00:58.6]} 3. Nf3 {[%clk 0:00:57.8]} 3... d5 {[%clk 0:00:55.7]} 4. d4 {[%clk 0:00:55.8]} 4... e6 {[%clk 0:00:55.2]} 5. e4 {[%clk 0:00:54.1]} 5... c6 {[%clk 0:00:54.9]} 6. e5 {[%clk 0:00:53]} 6... f6 {[%clk 0:00:53.6]} 7. Bf4 {[%clk 0:00:51.8]} 7... fxe5 {[%clk 0:00:52.2]} 8. Nxe5 {[%clk 0:00:50.9]} 8... Nf6 {[%clk 0:00:52]} 9. Qf3 {[%clk 0:00:44.4]} 9... Bb4 {[%clk 0:00:51.7]} 10. Bd2 {[%clk 0:00:41.5]} 10... O-O {[%clk 0:00:49.7]} 11. Be2 {[%clk 0:00:40]} 11... Ne4 {[%clk 0:00:48.5]} 12. Qe3 {[%clk 0:00:36.8]} 12... Nxd2 {[%clk 0:00:47.2]} 13. Qxd2 {[%clk 0:00:35.2]} 13... Qf6 {[%clk 0:00:46.9]} 14. O-O {[%clk 0:00:33.2]} 14... c5 {[%clk 0:00:42]} 15. Ng4 {[%clk 0:00:31.8]} 15... Qf7 {[%clk 0:00:40.6]} 16. dxc5 {[%clk 0:00:29.6]} 16... Bxc5 {[%clk 0:00:39.3]} 17. Nd1 {[%clk 0:00:26.7]} 17... Qe7 {[%clk 0:00:34]} 18. Ne5 {[%clk 0:00:25.7]} 18... Qd6 {[%clk 0:00:32.5]} 19. Nf3 {[%clk 0:00:22.8]} 19... d4 {[%clk 0:00:31.3]} 20. Nh4 {[%clk 0:00:16.1]} 20... Bb6 {[%clk 0:00:30.6]} 21. Bf3 {[%clk 0:00:14.9]} 21... Bc7 {[%clk 0:00:29.5]} 22. Bxa8 {[%clk 0:00:13.7]} 22... Qxh2# {[%clk 0:00:28.4]} 0-1

[Event "Live Chess"]
[Site "Chess.com"]
[Date "2011.01.29"]
[Round "-"]
[White "hipposcottimus"]
[Black "espanarules"]
[Result "1-0"]
[CurrentPosition "r3r1k1/5ppp/p1q5/1p6/4p3/BP6/P4N1P/5KR1 b - -"]
[Timezone "UTC"]
[ECO "B20"]
[ECOUrl "https://www.chess.com/openings/Sicilian-Defense"]
[UTCDate "2011.01.29"]
[UTCTime "21:14:20"]
[WhiteElo "1629"]
[BlackElo "1639"]
[TimeControl "60"]
[Termination "hipposcottimus won on time"]
[StartTime "21:14:20"]
[EndDate "2011.01.29"]
[EndTime "21:16:18"]
[Link "https://www.chess.com/game/live/92732368"]

1. e4 {[%clk 0:01:00]} 1... c5 {[%clk 0:01:00]} 2. Bb5 {[%clk 0:00:58.3]} 2... Qb6 {[%clk 0:00:57.5]} 3. Nc3 {[%clk 0:00:56.1]} 3... a6 {[%clk 0:00:56.6]} 4. Bc4 {[%clk 0:00:54.6]} 4... e6 {[%clk 0:00:55.2]} 5. d3 {[%clk 0:00:51.1]} 5... Ne7 {[%clk 0:00:51.7]} 6. f4 {[%clk 0:00:46.7]} 6... Nbc6 {[%clk 0:00:49]} 7. Nf3 {[%clk 0:00:43.7]} 7... Na5 {[%clk 0:00:47.9]} 8. O-O {[%clk 0:00:41.1]} 8... Nxc4 {[%clk 0:00:46.4]} 9. dxc4 {[%clk 0:00:40.8]} 9... Nc6 {[%clk 0:00:43]} 10. e5 {[%clk 0:00:36.2]} 10... Nd4 {[%clk 0:00:40.9]} 11. Nxd4 {[%clk 0:00:35.1]} 11... cxd4 {[%clk 0:00:40.2]} 12. Qxd4 {[%clk 0:00:34.8]} 12... Qxd4+ {[%clk 0:00:38.9]} 13. Kh1 {[%clk 0:00:33]} 13... Qxc4 {[%clk 0:00:38]} 14. Rg1 {[%clk 0:00:30.9]} 14... Bc5 {[%clk 0:00:35.9]} 15. Bd2 {[%clk 0:00:30.4]} 15... Bxg1 {[%clk 0:00:34.3]} 16. Rxg1 {[%clk 0:00:30.2]} 16... O-O {[%clk 0:00:31.7]} 17. b3 {[%clk 0:00:29.3]} 17... Qc7 {[%clk 0:00:27.6]} 18. Na4 {[%clk 0:00:28.9]} 18... b5 {[%clk 0:00:25.9]} 19. Bb4 {[%clk 0:00:28.4]} 19... Re8 {[%clk 0:00:23.4]} 20. Nc5 {[%clk 0:00:27.1]} 20... Bb7 {[%clk 0:00:19.5]} 21. c3 {[%clk 0:00:24.4]} 21... Qc6 {[%clk 0:00:17.3]} 22. Ba3 {[%clk 0:00:23.6]} 22... d6 {[%clk 0:00:12.4]} 23. Nd3 {[%clk 0:00:21.9]} 23... Qxc3 {[%clk 0:00:10.2]} 24. Nf2 {[%clk 0:00:21.6]} 24... dxe5 {[%clk 0:00:08.4]} 25. Nh3 {[%clk 0:00:21.3]} 25... exf4 {[%clk 0:00:07]} 26. Nxf4 {[%clk 0:00:21]} 26... e5 {[%clk 0:00:05.7]} 27. Nh3 {[%clk 0:00:20.6]} 27... Bxg2+ {[%clk 0:00:03.6]} 28. Kxg2 {[%clk 0:00:18.9]} 28... Qc6+ {[%clk 0:00:01.3]} 29. Kf1 {[%clk 0:00:18.4]} 29... e4 {[%clk 0:00:00.6]} 30. Nf2 {[%clk 0:00:16.8]} 1-0